bitfinex/quotes_SOLUSD_20250714
["timestamp","ask_amount","ask_price","bid_price","bid_amount"]
[1752501483926,0.59665871,167.83,167.79,0.03]
[1752501484138,9.8846804,167.8,167.79,0.03]
[1752501485606,10.48133911,167.8,167.79,0.03]
[1752501485921,26.32549507,167.8,167.79,0.03]
[1752501486314,26.32549507,167.8,167.77,0.03]
[1752501486315,57.96549507,167.8,167.77,0.03]
[1752501486627,9.8846804,167.78,167.77,0.03]
[1752501486838,10.48133911,167.78,167.77,0.03]
[1752501487130,16.44152506,167.78,167.77,0.03]
[1752501488324,10.48133911,167.78,167.77,0.03]
[1752501489628,16.44152506,167.78,167.77,0.03]
[1752501492030,16.44152506,167.78,167.76,0.03]
[1752501492325,9.8846804,167.77,167.73,0.2]
[1752501492528,9.8846804,167.74,167.73,0.2]
[1752501493201,41.68040745,167.84,167.73,0.2]
[1752501493202,0.59665871,167.83,167.73,89.8]
[1752501493529,31.64,167.82,167.73,89.8]
[1752501493831,9.8846804,167.77,167.74,26.0]
[1752501494431,0.59665871,167.81,167.75,16.78468397]
[1752501494734,9.8846804,167.76,167.74,89.6]
[1752501494931,9.8846804,167.75,167.74,89.6]
[1752501495236,9.8846804,167.75,167.73,0.2]
[1752501495406,10.48133911,167.74,167.73,0.2]
[1752501497212,16.44294635,167.74,167.73,0.2]
[1752501497731,10.48133911,167.74,167.73,0.2]
[1752501501008,9.8846804,167.74,167.73,0.2]
[1752501501237,0.59665871,167.76,167.73,0.2]
[1752501501743,9.8846804,167.74,167.73,0.2]
[1752501502236,9.8846804,167.75,167.74,16.78468397]
[1752501502815,9.8846804,167.78,167.74,16.78468397]
[1752501503040,6.2822,167.85,167.74,89.6]
[1752501503041,10.48133911,167.82,167.74,89.6]
[1752501503346,9.8846804,167.8,167.75,26.66936437]
[1752501503541,9.8846804,167.78,167.75,106.38468397]
[1752501503912,9.8846804,167.79,167.75,106.38468397]
[1752501504530,31.66,167.85,167.76,9.8846804]
[1752501504716,9.8846804,167.83,167.78,26.66936437]
[1752501505019,0.59665871,167.84,167.77,26.66936437]
[1752501505212,9.8846804,167.82,167.78,9.8846804]
[1752501505626,9.8846804,167.83,167.78,9.8846804]
[1752501505818,9.8846804,167.82,167.77,26.66936437]
[1752501506211,9.8846804,167.83,167.78,9.8846804]
[1752501506419,9.8846804,167.84,167.8,16.78468397]
[1752501506626,41.5446804,167.85,167.8,116.26936437]
[1752501506941,10.48133911,167.84,167.8,106.38468397]
[1752501507446,9.8846804,167.84,167.8,106.38468397]
[1752501507824,9.8846804,167.83,167.8,106.38468397]
[1752501508033,9.8846804,167.81,167.8,106.38468397]
[1752501508238,9.8846804,167.81,167.75,16.78468397]
[1752501508436,9.8846804,167.78,167.75,106.38468397]
[1752501510145,9.8846804,167.76,167.75,106.38468397]
[1752501510338,9.8846804,167.76,167.75,16.78468397]
[1752501511042,9.8846804,167.76,167.73,96.3565]
[1752501511246,9.8846804,167.74,167.73,106.58468397]
[1752501512430,9.8846804,167.74,167.73,89.8]
[1752501513553,9.8846804,167.74,167.73,0.2]
[1752501514329,0.59665871,167.75,167.73,0.2]
[1752501514531,0.59665871,167.78,167.73,0.2]
[1752501514746,9.8846804,167.74,167.73,0.2]
[1752501518021,0.59665871,167.77,167.74,16.78468397]
[1752501518240,9.8846804,167.77,167.74,16.78468397]
[1752501518549,9.8846804,167.75,167.73,0.2]
[1752501518927,9.8846804,167.76,167.73,0.2]
[1752501519140,9.8846804,167.75,167.73,0.2]
[1752501519333,9.8846804,167.74,167.73,0.2]
[1752501520230,9.8846804,167.75,167.73,0.2]
[1752501521141,0.59665871,167.77,167.73,0.2]
[1752501521341,9.8846804,167.74,167.73,0.2]
[1752501522030,15.84628764,167.74,167.73,0.2]
[1752501524934,15.84628764,167.74,167.72,0.03]
[1752501525143,10.48133911,167.73,167.72,0.03]
[1752501525341,0.59665871,167.73,167.72,0.03]
[1752501525548,10.48133911,167.73,167.72,0.03]
[1752501525955,9.8846804,167.75,167.72,0.03]
[1752501526158,9.8846804,167.76,167.72,0.03]
[1752501526459,9.8846804,167.74,167.72,0.03]
[1752501526645,0.59665871,167.75,167.72,0.03]
[1752501526646,9.8846804,167.75,167.72,0.03]
[1752501527027,0.59665871,167.76,167.73,16.78468397]
[1752501527226,0.59665871,167.78,167.75,16.78468397]
[1752501527550,10.48133911,167.78,167.75,16.78468397]
[1752501527748,9.8846804,167.76,167.72,16.81468397]
[1752501527955,0.59665871,167.78,167.73,9.8846804]
[1752501528155,10.48133911,167.78,167.73,9.8846804]
[1752501528940,9.8846804,167.78,167.73,9.8846804]
[1752501529145,0.06,167.76,167.73,9.8846804]
[1752501529340,0.06,167.76,167.75,16.78468397]
[1752501530351,0.06,167.76,167.75,9.8846804]
[1752501531061,0.06,167.76,167.75,90.34196437]
[1752501531363,0.06,167.76,167.75,80.45728397]
[1752501532230,9.9446804,167.76,167.75,16.78468397]
[1752501532443,0.06,167.76,167.75,16.78468397]
[1752501534177,0.06,167.76,167.75,16.78468397]
[1752501534743,0.06,167.76,167.75,52.66936437]
[1752501535939,0.06,167.76,167.75,142.26936437]
[1752501536141,0.06,167.83,167.79,50.93638397]
[1752501536351,0.06,167.83,167.82,26.66936437]
[1752501537143,0.06,167.83,167.82,31.06872457]
[1752501538978,28.38386437,167.83,167.68,18.8349413]
[1752501539268,28.38386437,167.83,167.67,0.2]
[1752501539269,9.8846804,167.8,167.67,0.2]
[1752501539460,9.8846804,167.73,167.67,0.2]
[1752501539766,9.8846804,167.73,167.67,16.98468397]
[1752501540164,9.8846804,167.73,167.67,0.2]
[1752501540583,0.59665871,167.75,167.67,10.0846804]
[1752501540745,14.90011233,167.79,167.67,10.0846804]
[1752501540746,9.8846804,167.73,167.67,0.2]
[1752501542149,0.59665871,167.74,167.67,0.2]
[1752501542374,9.8846804,167.73,167.67,0.2]
[1752501542667,10.48133911,167.73,167.67,0.2]
[1752501543678,9.8846804,167.73,167.67,0.2]
[1752501543876,15.84664307,167.73,167.67,0.2]
[1752501544384,9.8846804,167.73,167.67,0.2]
[1752501544565,9.8846804,167.73,167.67,16.98468397]
[1752501544754,0.59665871,167.74,167.67,16.98468397]
[1752501545057,9.8846804,167.73,167.67,16.98468397]
[1752501546282,9.8846804,167.73,167.67,0.2]
[1752501546283,41.5046804,167.73,167.67,0.2]
[1752501546457,48.06330178,167.73,167.67,0.2]
[1752501547278,57.94798218,167.73,167.67,0.2]
[1752501547480,19.7693608,167.7,167.67,0.2]
[1752501547678,0.59665871,167.7,167.67,0.2]
[1752501547855,52.12601951,167.7,167.67,0.2]
[1752501548765,42.24133911,167.7,167.67,0.2]
[1752501549182,58.08904872,167.7,167.67,0.2]
[1752501549361,9.8846804,167.68,167.67,0.2]
[1752501551283,10.48133911,167.68,167.67,0.2]
[1752501551478,0.59665871,167.68,167.67,0.2]
[1752501551683,9.8846804,167.68,167.67,0.2]
[1752501553174,0.59665871,167.69,167.67,0.2]
[1752501553175,10.48133911,167.69,167.67,0.2]
[1752501553385,9.8846804,167.7,167.67,0.2]
[1752501553579,10.48133911,167.69,167.67,0.2]
[1752501553771,9.8846804,167.68,167.67,0.2]
[1752501553968,9.8846804,167.69,167.67,0.2]
[1752501554173,9.8846804,167.7,167.67,0.2]
[1752501554571,10.48133911,167.73,167.67,10.0846804]
[1752501554772,10.48133911,167.73,167.69,16.78468397]
[1752501555281,0.59665871,167.75,167.71,16.78468397]
[1752501555470,9.8846804,167.77,167.73,16.78468397]
[1752501555671,10.48133911,167.76,167.73,16.78468397]
[1752501555978,10.48133911,167.76,167.71,9.8846804]
[1752501556590,9.8846804,167.76,167.71,9.8846804]
[1752501556773,9.8846804,167.78,167.73,9.8846804]
[1752501557083,9.8846804,167.78,167.73,16.2028804]
[1752501557580,10.48133911,167.79,167.73,16.2028804]
[1752501557882,10.48133911,167.79,167.75,16.78468397]
[1752501558290,0.06,167.82,167.75,26.66936437]
[1752501558291,9.8846804,167.8,167.75,26.66936437]
[1752501558662,9.8846804,167.81,167.77,16.78468397]
[1752501558988,10.54133911,167.82,167.77,26.66936437]
[1752501559186,10.54133911,167.82,167.77,16.78468397]
[1752501559389,10.54133911,167.82,167.77,26.66936437]
[1752501559688,0.06,167.82,167.79,16.78468397]
[1752501559878,9.9446804,167.82,167.78,16.78468397]
[1752501560185,9.8846804,167.81,167.78,16.78468397]
[1752501560366,0.06,167.82,167.74,27.5697]
[1752501560367,9.8846804,167.79,167.74,27.5697]
[1752501560568,0.06,167.82,167.78,16.78468397]
[1752501560787,10.54133911,167.82,167.78,16.78468397]
[1752501560984,9.9446804,167.82,167.78,16.78468397]
[1752501561867,0.06,167.82,167.78,26.66936437]
[1752501562590,0.06,167.82,167.78,16.78468397]
[1752501562771,0.06,167.82,167.78,26.66936437]
[1752501562965,0.06,167.82,167.78,16.78468397]
[1752501563204,0.06,167.82,167.81,16.78468397]
[1752501566204,0.06,167.82,167.81,26.66936437]
[1752501566501,0.06,167.82,167.81,32.98306437]
[1752501568484,0.06,167.82,167.81,23.09838397]
[1752501570983,0.06,167.82,167.81,32.98306437]
[1752501571413,0.06,167.82,167.81,23.09838397]
[1752501572011,0.06,167.82,167.8,16.78468397]
[1752501572012,9.9446804,167.82,167.8,16.78468397]
[1752501572186,9.8846804,167.81,167.8,16.78468397]
[1752501572505,9.9446804,167.82,167.81,42.78468397]
[1752501572709,9.9446804,167.82,167.81,16.78468397]
[1752501572886,0.06,167.82,167.81,42.78468397]
[1752501575487,0.06,167.82,167.81,84.34936437]
[1752501577893,0.06,167.82,167.81,173.94936437]
[1752501579815,0.06,167.82,167.81,294.14936437]
[1752501581402,0.06,167.82,167.81,284.26468397]
[1752501581610,0.06,167.82,167.81,294.14936437]
[1752501582114,0.06,167.82,167.81,284.26468397]
[1752501583694,0.06,167.82,167.81,164.06468397]
[1752501586114,0.06,167.82,167.81,132.38468397]
[1752501586636,9.9446804,167.82,167.81,16.78468397]
[1752501586830,9.9446804,167.82,167.79,89.6]
[1752501587008,9.8846804,167.8,167.79,89.6]
[1752501587901,9.8846804,167.8,167.76,48.36468397]
[1752501588105,9.8846804,167.78,167.76,137.96468397]
[1752501588301,0.06,167.82,167.76,137.96468397]
[1752501588517,9.8846804,167.8,167.76,137.96468397]
[1752501588716,9.8846804,167.8,167.79,42.78468397]
[1752501588923,9.9446804,167.82,167.79,42.78468397]
[1752501589094,0.06,167.82,167.79,42.78468397]
[1752501589299,0.06,167.82,167.81,16.78468397]
[1752501589499,9.9446804,167.82,167.81,16.78468397]
[1752501589712,0.06,167.82,167.81,16.78468397]
[1752501590116,9.9446804,167.82,167.81,16.78468397]
[1752501590416,0.06,167.82,167.81,16.78468397]
[1752501590918,0.06,167.82,167.81,106.38468397]
[1752501598325,9.9446804,167.82,167.81,106.38468397]
[1752501599200,9.9446804,167.82,167.81,89.6]
[1752501599619,9.9446804,167.82,167.78,137.92468397]
[1752501599823,9.8846804,167.79,167.78,137.92468397]
[1752501600013,9.8846804,167.79,167.78,106.38468397]
[1752501600214,9.8846804,167.79,167.78,16.78468397]
[1752501600428,0.06,167.82,167.78,16.78468397]
[1752501600627,9.9446804,167.82,167.79,31.52]
[1752501600829,9.8846804,167.8,167.79,48.30468397]
[1752501601303,0.06,167.82,167.81,42.78468397]
[1752501601510,0.06,167.82,167.81,163.90468397]
[1752501601837,0.06,167.82,167.81,173.78936437]
[1752501602206,0.06,167.82,167.81,180.45086437]
[1752501602742,0.06,167.83,167.82,26.66936437]
[1752501602904,0.06,167.83,167.82,16.78468397]
[1752501603101,0.06,167.83,167.82,26.66936437]
[1752501603308,0.06,167.83,167.82,16.78468397]
[1752501603604,0.06,167.83,167.82,48.30468397]
[1752501604014,0.06,167.83,167.82,58.18936437]
[1752501604506,0.06,167.89,167.87,42.78468397]
[1752501604704,9.9446804,167.89,167.88,31.54]
[1752501604905,9.9446804,167.89,167.87,137.86468397]
[1752501605324,9.8846804,167.88,167.87,137.86468397]
[1752501605528,0.06,167.89,167.87,137.86468397]
[1752501606611,9.9446804,167.89,167.87,137.86468397]
[1752501607021,0.06,167.89,167.87,137.86468397]
[1752501608636,0.06,167.89,167.88,26.66936437]
[1752501608926,0.06,167.89,167.88,262.40936437]
[1752501610114,0.06,167.89,167.88,252.52468397]
[1752501610436,0.06,167.89,167.88,278.52468397]
[1752501610822,0.06,167.89,167.88,262.40936437]
[1752501611423,0.2,167.93,167.92,26.0]
[1752501611623,0.2,167.93,167.92,288.44956515]
[1752501611843,0.2,167.93,167.92,298.33424555]
[1752501612249,0.2,167.93,167.92,288.44956515]
[1752501612834,0.2,167.93,167.92,298.33424555]
[1752501613033,0.2,167.93,167.92,293.92936437]
[1752501613234,0.2,167.93,167.92,298.32742978]
[1752501614446,0.2,167.93,167.92,298.32351191]
[1752501615145,0.2,167.93,167.92,303.09085885]
[1752501615555,0.2,167.93,167.92,298.32351191]
[1752501616540,0.2,167.93,167.92,309.03755075]
[1752501618841,0.06,167.99,167.98,26.0]
[1752501619049,0.06,167.99,167.98,71.76297282]
[1752501619430,0.06,167.99,167.98,61.87829242]
[1752501622045,0.06,167.99,167.98,61.87222838]
[1752501622244,0.06,167.99,167.98,4.37222838]
[1752501622245,9.9446804,167.99,167.98,4.37222838]
[1752501622557,0.06,167.99,167.98,4.37221804]
[1752501622762,9.9446804,167.99,167.98,4.37221804]
[1752501623836,10.54133911,167.99,167.98,4.37221804]
[1752501624044,9.9446804,167.99,167.98,4.37221804]
[1752501626145,10.54133911,167.99,167.98,4.37221804]
[1752501626348,9.9446804,167.99,167.98,4.37221804]
[1752501627357,0.06,167.99,167.98,21.15690201]
[1752501627672,9.9446804,167.99,167.98,21.15690201]
[1752501627857,9.9446804,167.99,167.98,16.78468397]
[1752501628054,9.9446804,167.99,167.98,21.15527871]
[1752501628968,0.06,167.99,167.98,21.15527871]
[1752501630049,0.06,167.99,167.98,31.03995911]
[1752501630249,0.06,167.99,167.98,21.15527871]
[1752501630654,9.9446804,167.99,167.98,21.15527871]
[1752501630856,9.9446804,167.99,167.98,21.15300616]
[1752501631063,9.9446804,167.99,167.98,4.36832219]
[1752501631263,0.06,167.99,167.98,4.36832219]
[1752501632343,9.9446804,167.99,167.98,4.36832219]
[1752501633256,0.06,167.99,167.98,4.36832219]
[1752501633947,9.9446804,167.99,167.98,4.36832219]
[1752501634152,0.06,167.99,167.98,4.36832219]
[1752501635743,9.9446804,167.99,167.98,4.36832219]
[1752501635947,0.06,167.99,167.98,4.36832219]
[1752501636159,9.9446804,167.99,167.98,4.36832219]
[1752501636769,0.06,167.99,167.98,4.36832219]
[1752501637673,6.00657694,167.99,167.98,4.36832219]
[1752501638376,6.60323565,167.99,167.98,4.36832219]
[1752501639665,6.60323565,167.99,167.94,16.78468397]
[1752501639870,5.94657694,167.97,167.95,4.37179064]
[1752501640044,0.06,167.99,167.96,4.37179064]
[1752501640248,5.94657694,167.97,167.94,16.78468397]
[1752501640497,5.94657694,167.95,167.94,16.78468397]
[1752501640695,5.94657694,167.95,167.94,4.37500593]
[1752501640989,11.89315388,167.95,167.94,4.37500593]
[1752501641160,16.47665603,167.95,167.93,0.03]
[1752501641361,9.9258443,167.94,167.93,0.03]
[1752501641772,0.59665871,167.95,167.93,0.03]
[1752501641773,6.55083399,167.95,167.93,0.03]
[1752501641979,9.9258443,167.94,167.86,16.78468397]
[1752501642283,9.9258443,167.88,167.86,106.38468397]
[1752501642583,9.9258443,167.87,167.86,16.78468397]
[1752501642786,9.9258443,167.87,167.84,31.48]
[1752501642990,9.9258443,167.85,167.82,31.5]
[1752501643163,0.59665871,167.89,167.83,16.78468397]
[1752501643487,9.9258443,167.86,167.83,16.78468397]
[1752501643689,9.9258443,167.87,167.83,16.78468397]
[1752501643863,9.9258443,167.89,167.87,16.78468397]
[1752501644282,9.9258443,167.88,167.87,16.78468397]
[1752501644876,9.9258443,167.88,167.86,16.78468397]
[1752501645071,9.9258443,167.87,167.86,16.78468397]
[1752501646588,9.9258443,167.87,167.85,89.6]
[1752501646793,9.9258443,167.86,167.85,106.38468397]
[1752501646973,9.9258443,167.86,167.85,89.6]
[1752501647166,9.9258443,167.86,167.81,16.78468397]
[1752501647366,9.9258443,167.82,167.81,16.78468397]
[1752501647565,9.9258443,167.82,167.78,48.28468397]
[1752501647881,9.9258443,167.8,167.78,48.28468397]
[1752501648771,0.59665871,167.86,167.78,74.28468397]
[1752501648996,9.9258443,167.8,167.78,74.28468397]
[1752501649202,0.59665871,167.86,167.8,26.0]
[1752501649203,9.9258443,167.81,167.8,26.0]
[1752501649383,0.59665871,167.86,167.81,16.78468397]
[1752501649776,6.55411229,167.86,167.76,16.78468397]
[1752501650090,6.55411229,167.86,167.75,0.03]
[1752501650270,5.95745358,167.86,167.75,0.03]
[1752501650471,5.95745358,167.86,167.75,16.81468397]
[1752501650472,9.9258443,167.76,167.75,16.81468397]
[1752501650671,9.9258443,167.76,167.75,0.03]
[1752501652483,5.95770032,167.85,167.75,0.03]
[1752501652793,1.6545,167.87,167.77,16.78468397]
[1752501653093,7.61179686,167.87,167.79,16.78468397]
[1752501653390,22.50427318,167.87,167.76,16.78468397]
[1752501654170,9.9258443,167.77,167.76,16.78468397]
[1752501654396,9.9258443,167.77,167.76,106.38468397]
[1752501654688,9.9258443,167.77,167.76,16.78468397]
[1752501654874,9.9258443,167.77,167.75,16.81468397]
[1752501655186,9.9258443,167.76,167.75,16.81468397]
[1752501655785,9.9258443,167.76,167.75,0.03]
[1752501658609,9.9258443,167.8,167.75,0.03]
[1752501659008,9.9258443,167.76,167.75,0.03]
[1752501660588,15.88674081,167.76,167.69,0.03]
[1752501660792,9.9258443,167.7,167.69,0.03]
[1752501660991,9.9258443,167.7,167.69,16.81468397]
[1752501661509,19.8516886,167.7,167.68,0.03]
[1752501661726,9.9258443,167.69,167.67,0.2]
[1752501662015,9.9258443,167.68,167.67,0.2]
[1752501664601,9.9258443,167.68,167.66,0.2]
[1752501664810,9.9258443,167.67,167.66,0.2]
[1752501668598,15.88994044,167.67,167.65,0.03]
[1752501668802,9.9258443,167.66,167.65,0.03]
[1752501669116,9.9258443,167.66,167.62,0.03]
[1752501669294,19.8516886,167.63,167.61,0.03]
[1752501669495,19.8516886,167.62,167.61,0.03]
[1752501669694,9.9258443,167.62,167.61,0.03]
[1752501670116,25.81756379,167.62,167.59,0.03]
[1752501670323,19.8516886,167.6,167.57,0.2]
[1752501670496,9.9258443,167.58,167.57,0.2]
[1752501671433,7.62724423,167.64,167.57,0.2]
[1752501671726,9.9258443,167.58,167.57,0.2]
[1752501674719,9.9258443,167.6,167.58,16.78468397]
[1752501675218,6.2103,167.67,167.58,16.78468397]
[1752501675426,9.9258443,167.62,167.58,16.78468397]
[1752501675606,6.2103,167.67,167.58,16.78468397]
[1752501675811,9.9258443,167.62,167.58,16.78468397]
[1752501676211,9.9258443,167.61,167.58,16.78468397]
[1752501676401,9.9258443,167.62,167.58,16.78468397]
[1752501676607,9.9258443,167.64,167.59,9.9258443]
[1752501677095,9.9258443,167.63,167.58,26.71052827]
[1752501677633,9.9258443,167.64,167.59,9.9258443]
[1752501678135,41.4658443,167.7,167.58,16.78468397]
[1752501678136,9.9258443,167.63,167.58,26.71052827]
[1752501678442,9.9258443,167.62,167.58,16.78468397]
[1752501678906,9.9258443,167.64,167.59,9.9258443]
[1752501679219,9.9258443,167.64,167.58,26.71052827]
[1752501679601,15.88892901,167.7,167.58,26.71052827]
[1752501679828,9.9258443,167.63,167.58,26.71052827]
[1752501680123,9.9258443,167.65,167.6,26.71052827]
[1752501680435,9.9258443,167.63,167.58,26.71052827]
[1752501680632,9.9258443,167.63,167.59,16.78468397]
[1752501680820,9.9258443,167.63,167.59,252.58468397]
[1752501681021,9.9258443,167.7,167.6,9.9258443]
[1752501681328,1.6323,167.72,167.63,16.78468397]
[1752501681621,9.9258443,167.66,167.62,16.78468397]
[1752501681928,7.59465476,167.72,167.62,16.78468397]
[1752501681929,9.9258443,167.7,167.62,16.78468397]
[1752501682138,9.9258443,167.64,167.62,16.78468397]
[1752501682647,9.9258443,167.63,167.62,16.78468397]
[1752501683233,5.96276866,167.71,167.62,16.78468397]
[1752501683537,9.9258443,167.65,167.62,16.78468397]
[1752501683903,9.9258443,167.64,167.62,16.78468397]
[1752501684109,1.6323,167.72,167.62,16.78468397]
[1752501684312,9.9258443,167.67,167.62,16.78468397]
[1752501684602,1.6323,167.72,167.62,16.78468397]
[1752501684603,9.9258443,167.66,167.62,16.78468397]
[1752501684840,9.9258443,167.65,167.64,26.0]
[1752501685042,31.54,167.73,167.65,16.78468397]
[1752501685343,9.9258443,167.7,167.65,26.71052827]
[1752501685621,7.47539874,167.76,167.67,16.78468397]
[1752501685622,9.9258443,167.71,167.67,16.78468397]
[1752501685841,17.9760443,167.8,167.69,26.71052827]
[1752501686142,9.9258443,167.78,167.73,16.78468397]
[1752501686300,9.9258443,167.75,167.73,48.32468397]
[1752501686502,0.2,167.81,167.73,48.32468397]
[1752501686708,9.9258443,167.76,167.73,16.78468397]
[1752501687705,9.9258443,167.77,167.73,16.78468397]
[1752501688109,9.9258443,167.76,167.73,16.78468397]
[1752501688304,0.2,167.81,167.73,16.78468397]
[1752501688305,9.9258443,167.77,167.73,16.78468397]
[1752501688509,0.2,167.81,167.76,16.78468397]
[1752501688717,0.2,167.81,167.75,16.78468397]
[1752501688718,9.9258443,167.79,167.75,16.78468397]
[1752501688915,0.2,167.81,167.75,48.32468397]
[1752501689130,10.1258443,167.81,167.76,9.9258443]
[1752501689305,0.2,167.81,167.76,9.9258443]
[1752501689506,10.1258443,167.81,167.76,9.9258443]
[1752501690429,9.9258443,167.8,167.75,58.25052827]
[1752501690639,9.9258443,167.79,167.78,16.78468397]
[1752501690941,9.9258443,167.79,167.77,26.0]
[1752501691104,9.9258443,167.79,167.71,9.9258443]
[1752501691105,9.9258443,167.78,167.73,57.54]
[1752501691308,9.9258443,167.8,167.73,48.32468397]
[1752501691521,9.9258443,167.8,167.74,16.78468397]
[1752501691732,9.9258443,167.75,167.74,16.78468397]
[1752501692220,9.9258443,167.75,167.71,16.78468397]
[1752501692419,9.9258443,167.72,167.71,16.78468397]
[1752501692604,9.9258443,167.72,167.68,31.52]
[1752501692805,9.9258443,167.69,167.65,6.5992]
[1752501693039,9.9258443,167.66,167.65,6.5992]
[1752501693245,9.9258443,167.66,167.65,32.5992]
[1752501693537,9.9258443,167.66,167.65,23.38388397]
[1752501693738,9.9258443,167.66,167.65,16.78468397]
[1752501693920,9.9258443,167.66,167.6,7.7706]
[1752501694113,9.9258443,167.64,167.61,31.52]
[1752501694317,9.9258443,167.64,167.62,16.78468397]
[1752501694524,9.9258443,167.66,167.62,16.78468397]
[1752501694813,9.9258443,167.7,167.65,26.0]
[1752501695047,9.9258443,167.7,167.62,16.78468397]
[1752501695334,9.9258443,167.63,167.62,16.78468397]
[1752501697536,9.9258443,167.63,167.61,16.78468397]
[1752501697744,9.9258443,167.62,167.61,16.78468397]
[1752501698440,9.9258443,167.63,167.61,16.78468397]
[1752501698633,9.9258443,167.62,167.61,16.78468397]
[1752501699637,9.9258443,167.63,167.61,16.78468397]
[1752501700234,1.6455,167.7,167.61,16.78468397]
[1752501700529,9.9258443,167.7,167.63,16.78468397]
[1752501700738,9.9258443,167.65,167.63,16.78468397]
[1752501700939,6.325,167.71,167.63,16.78468397]
[1752501701125,9.9258443,167.64,167.63,16.78468397]
[1752501701759,9.9258443,167.65,167.63,16.78468397]
[1752501702563,1.5067,167.74,167.63,16.78468397]
[1752501702863,8.1207,167.79,167.69,26.0]
[1752501703023,9.9258443,167.72,167.7,16.78468397]
[1752501703229,9.9258443,167.71,167.7,16.78468397]
[1752501704442,9.9258443,167.72,167.7,16.78468397]
[1752501704750,9.9258443,167.71,167.7,16.78468397]
[1752501705563,9.9258443,167.72,167.7,16.78468397]
[1752501706038,0.06,167.77,167.72,16.78468397]
[1752501706352,9.9258443,167.74,167.72,106.38468397]
[1752501706747,0.06,167.77,167.72,106.38468397]
[1752501706938,9.9258443,167.75,167.72,106.38468397]
[1752501707138,0.06,167.77,167.72,106.38468397]
[1752501707347,9.9258443,167.75,167.72,106.38468397]
[1752501707824,9.9258443,167.76,167.74,16.78468397]
[1752501708152,9.9258443,167.75,167.74,16.78468397]
[1752501708732,9.9258443,167.75,167.72,89.6]
[1752501708932,9.9258443,167.73,167.72,89.6]
[1752501709241,9.9258443,167.73,167.7,89.6]
[1752501709427,9.9258443,167.71,167.7,89.6]
[1752501711451,9.9258443,167.71,167.67,115.6]
[1752501711746,9.9258443,167.68,167.67,132.38468397]
[1752501711950,9.9258443,167.68,167.67,89.6]
[1752501712549,9.9258443,167.68,167.62,48.30468397]
[1752501712755,9.9258443,167.63,167.62,16.78468397]
[1752501713462,9.9258443,167.7,167.62,16.78468397]
[1752501713636,9.9258443,167.63,167.62,16.78468397]
[1752501714068,9.9258443,167.64,167.62,16.78468397]
[1752501714234,9.9258443,167.66,167.62,16.78468397]
[1752501714435,9.9258443,167.65,167.64,16.78468397]
[1752501715244,9.9258443,167.65,167.61,26.0]
[1752501715245,9.9258443,167.65,167.61,57.52]
[1752501715556,9.9258443,167.7,167.62,16.78468397]
[1752501716654,9.9258443,167.63,167.62,16.78468397]
[1752501718259,9.9258443,167.67,167.65,26.0]
[1752501718433,9.9258443,167.67,167.65,115.6]
[1752501718855,9.9258443,167.66,167.65,132.38468397]
[1752501719339,9.9258443,167.7,167.65,106.38468397]
[1752501719540,9.9258443,167.66,167.65,89.6]
[1752501719955,9.9258443,167.66,167.65,106.38468397]
[1752501720735,0.06,167.77,167.66,16.78468397]
[1752501720935,9.9258443,167.74,167.71,16.78468397]
[1752501721137,0.06,167.77,167.73,16.78468397]
[1752501721436,0.06,167.77,167.76,16.78468397]
[1752501721654,0.06,167.77,167.76,58.23052827]
[1752501722041,0.06,167.77,167.76,48.30468397]
[1752501722362,0.06,167.77,167.76,106.38468397]
[1752501722551,9.9858443,167.77,167.75,48.30468397]
[1752501722861,0.06,167.77,167.75,58.23052827]
[1752501723161,0.06,167.77,167.75,48.30468397]
[1752501724138,9.9258443,167.76,167.75,16.78468397]
[1752501724339,0.06,167.77,167.76,26.0]
[1752501724647,9.9858443,167.77,167.76,26.0]
[1752501725071,0.06,167.77,167.76,42.78468397]
[1752501725366,0.06,167.77,167.76,74.30468397]
[1752501726864,9.9858443,167.77,167.76,74.30468397]
[1752501727064,9.9858443,167.77,167.76,42.78468397]
[1752501727673,9.9858443,167.77,167.75,31.52]
[1752501727966,0.06,167.77,167.76,16.78468397]
[1752501728261,0.06,167.77,167.75,16.78468397]
[1752501728441,0.06,167.77,167.74,31.5]
[1752501728640,0.06,167.77,167.75,16.78468397]
[1752501729068,9.9258443,167.76,167.75,16.78468397]